[Event "Titled Tuesday Blitz June 21 Late 2022"]
[White "Adla, Diego"]
[Black "Melikhov, Evgeny V."]
[WhiteFideId "100072"]
[BlackFideId "4122046"]
[WhiteElo "2377"]
[BlackElo "1904"]
[Result "1-0"]
[Round "04"]
[TimeControl "180+1"]
[Date "2022.06.22"]
[WhiteClock "0:00:05"]
[BlackClock "0:00:04"]

1. e4 {[%clk 0:02:56]}  e5 {[%clk 0:02:59]} 2. Nf3 {[%clk 0:02:55]}  Nc6 {[%clk 0:02:59]} 3. d4 {[%clk 0:02:55]}  exd4 {[%clk 0:02:59]} 4. Nxd4 {[%clk 0:02:55]}  Bc5 {[%clk 0:02:59]} 5. Nb3 {[%clk 0:02:55]}  Bb6 {[%clk 0:02:59]} 6. Nc3 {[%clk 0:02:55]}  Nf6 {[%clk 0:02:57]} 7. Bg5 {[%clk 0:02:55]}  h6 {[%clk 0:02:57]} 8. Bh4 {[%clk 0:02:54]}  g5 {[%clk 0:02:57]} 9. Bg3 {[%clk 0:02:54]}  d6 {[%clk 0:02:56]} 10. Bb5 {[%clk 0:02:53]}  Bd7 {[%clk 0:02:55]} 11. Qe2 {[%clk 0:02:52]}  Nd4 {[%clk 0:02:47]} 12. Nxd4 {[%clk 0:02:45]}  Bxd4 {[%clk 0:02:47]} 13. Rd1 {[%clk 0:02:41]}  Bxc3+ {[%clk 0:02:38]} 14. bxc3 {[%clk 0:02:41]}  Bxb5 {[%clk 0:02:07]} 15. Qxb5+ {[%clk 0:02:40]}  Qd7 {[%clk 0:01:57]} 16. Qxb7 {[%clk 0:02:35]}  O-O {[%clk 0:01:56]} 17. e5 {[%clk 0:02:14]}  Qe7 {[%clk 0:01:20]} 18. O-O {[%clk 0:01:58]}  dxe5 {[%clk 0:01:19]} 19. Rfe1 {[%clk 0:01:59]}  Rfb8 {[%clk 0:01:01]} 20. Qc6 {[%clk 0:01:37]}  e4 {[%clk 0:00:54]} 21. h4 {[%clk 0:01:02]}  Re8 {[%clk 0:00:44]} 22. hxg5 {[%clk 0:00:59]}  hxg5 {[%clk 0:00:43]} 23. Qb5 {[%clk 0:00:44]}  Nh5 {[%clk 0:00:38]} 24. Rd5 {[%clk 0:00:40]}  f6 {[%clk 0:00:34]} 25. Rd7 {[%clk 0:00:39]}  Qe6 {[%clk 0:00:29]} 26. Bxc7 {[%clk 0:00:36]}  Rac8 {[%clk 0:00:21]} 27. c4 {[%clk 0:00:27]}  Re7 {[%clk 0:00:20]} 28. Rxe7 {[%clk 0:00:24]}  Qxe7 {[%clk 0:00:20]} 29. Bh2 {[%clk 0:00:19]}  Kg7 {[%clk 0:00:19]} 30. Qd5 {[%clk 0:00:12]}  Re8 {[%clk 0:00:15]} 31. c5 {[%clk 0:00:10]}  Kg6 {[%clk 0:00:14]} 32. c6 {[%clk 0:00:10]}  f5 {[%clk 0:00:12]} 33. Bd6 {[%clk 0:00:08]}  Qe6 {[%clk 0:00:11]} 34. Qxe6+ {[%clk 0:00:08]}  Rxe6 {[%clk 0:00:12]} 35. c7 {[%clk 0:00:05]}  Re8 {[%clk 0:00:12]} 36. Rb1 {[%clk 0:00:04]}  Nf6 {[%clk 0:00:05]} 37. Rb8 {[%clk 0:00:04]}  Kf7 {[%clk 0:00:02]} 38. Rxe8 {[%clk 0:00:03]}  Nxe8 {[%clk 0:00:03]} 39. c8=Q {[%clk 0:00:03]}  Nxd6 {[%clk 0:00:03]} 40. Qd7+ {[%clk 0:00:03]}  Kg6 {[%clk 0:00:04]} 41. Qxd6+ {[%clk 0:00:04]}  Kh5 {[%clk 0:00:05]} 42. Qd7 {[%clk 0:00:04]}  Kg4 {[%clk 0:00:05]} 43. Qxa7 {[%clk 0:00:05]}  f4 {[%clk 0:00:04]} 44. Qa6 {[%clk 0:00:05]} 1-0


[Site "https://www.chess.com"]

[Event "Titled Tuesday Blitz June 21 Late 2022"]
[White "Aldokhin, Ivan"]
[Black "Bintang, Rasyid A. Hidayat"]
[WhiteFideId "24115720"]
[BlackFideId "7105355"]
[WhiteElo "2231"]
[BlackElo "2408"]
[Result "1-0"]
[Round "04"]
[TimeControl "180+1"]
[Date "2022.06.22"]
[WhiteClock "0:00:02"]
[BlackClock "0:00:01"]

1. d4 {[%clk 0:03:00]}  d5 {[%clk 0:03:00]} 2. c4 {[%clk 0:03:01]}  Nc6 {[%clk 0:03:00]} 3. Nc3 {[%clk 0:02:55]}  Nf6 {[%clk 0:02:59]} 4. cxd5 {[%clk 0:02:51]}  Nxd5 {[%clk 0:02:59]} 5. e4 {[%clk 0:02:52]}  Nxc3 {[%clk 0:03:00]} 6. bxc3 {[%clk 0:02:52]}  e5 {[%clk 0:03:00]} 7. d5 {[%clk 0:02:53]}  Nb8 {[%clk 0:03:00]} 8. Bd3 {[%clk 0:02:50]}  Bd6 {[%clk 0:03:00]} 9. Ne2 {[%clk 0:02:49]}  Nd7 {[%clk 0:03:00]} 10. O-O {[%clk 0:02:49]}  Qe7 {[%clk 0:03:00]} 11. Kh1 {[%clk 0:02:41]}  Nc5 {[%clk 0:03:00]} 12. Bc2 {[%clk 0:02:41]}  O-O {[%clk 0:02:58]} 13. Ng3 {[%clk 0:02:37]}  g6 {[%clk 0:02:42]} 14. Bh6 {[%clk 0:02:26]}  Rd8 {[%clk 0:02:42]} 15. Qd2 {[%clk 0:02:26]}  b6 {[%clk 0:02:31]} 16. f4 {[%clk 0:02:20]}  exf4 {[%clk 0:02:29]} 17. Bxf4 {[%clk 0:02:21]}  Nd7 {[%clk 0:02:14]} 18. Rae1 {[%clk 0:01:55]}  Bxf4 {[%clk 0:02:05]} 19. Qxf4 {[%clk 0:01:55]}  Ne5 {[%clk 0:02:02]} 20. h3 {[%clk 0:01:52]}  Ba6 {[%clk 0:02:01]} 21. Rf2 {[%clk 0:01:48]}  Rf8 {[%clk 0:02:00]} 22. Qh6 {[%clk 0:01:42]}  f6 {[%clk 0:01:51]} 23. Rd1 {[%clk 0:01:32]}  Rad8 {[%clk 0:01:49]} 24. Bb3 {[%clk 0:01:25]}  Bc4 {[%clk 0:01:47]} 25. Ne2 {[%clk 0:01:13]}  Nd3 {[%clk 0:01:42]} 26. Rxd3 {[%clk 0:01:10]}  Bxb3 {[%clk 0:01:32]} 27. axb3 {[%clk 0:01:08]}  Qxe4 {[%clk 0:01:32]} 28. Rd4 {[%clk 0:00:57]}  Qb1+ {[%clk 0:01:23]} 29. Kh2 {[%clk 0:00:58]}  Qxb3 {[%clk 0:01:23]} 30. Nf4 {[%clk 0:00:36]}  Rd7 {[%clk 0:01:16]} 31. Ne6 {[%clk 0:00:32]}  Rff7 {[%clk 0:01:14]} 32. c4 {[%clk 0:00:25]}  Qc3 {[%clk 0:01:10]} 33. Rdf4 {[%clk 0:00:24]}  Qe5 {[%clk 0:01:07]} 34. Kh1 {[%clk 0:00:19]}  c6 {[%clk 0:01:01]} 35. Qh4 {[%clk 0:00:08]}  g5 {[%clk 0:00:56]} 36. Qg4 {[%clk 0:00:08]}  h5 {[%clk 0:00:35]} 37. Qg3 {[%clk 0:00:08]}  cxd5 {[%clk 0:00:34]} 38. cxd5 {[%clk 0:00:08]}  Rxd5 {[%clk 0:00:34]} 39. Nxg5 {[%clk 0:00:08]}  Qxg5 {[%clk 0:00:30]} 40. Qb3 {[%clk 0:00:08]}  Qe5 {[%clk 0:00:20]} 41. R4f3 {[%clk 0:00:04]}  Qe1+ {[%clk 0:00:18]} 42. Rf1 {[%clk 0:00:04]}  Qe5 {[%clk 0:00:19]} 43. Rg3+ {[%clk 0:00:03]}  Kf8 {[%clk 0:00:18]} 44. Re3 {[%clk 0:00:04]}  Qd6 {[%clk 0:00:15]} 45. Ref3 {[%clk 0:00:04]}  a5 {[%clk 0:00:09]} 46. Qe3 {[%clk 0:00:04]}  Re5 {[%clk 0:00:01]} 47. Qh6+ {[%clk 0:00:04]}  Ke7 {[%clk 0:00:01]} 48. Qg6 {[%clk 0:00:05]}  Qe6 {[%clk 0:00:01]} 49. Rc3 {[%clk 0:00:02]} 1-0


[Site "https://www.chess.com"]

[Event "Titled Tuesday Blitz June 21 Late 2022"]
[White "Alexiadis, Hristos"]
[Black "Roberson, Peter T"]
[WhiteFideId "4249623"]
[BlackFideId "412384"]
[WhiteElo "2416"]
[BlackElo "2346"]
[Result "1-0"]
[Round "04"]
[TimeControl "180+1"]
[Date "2022.06.22"]
[WhiteClock "0:00:42"]
[BlackClock "0:00:08"]

1. e4 {[%clk 0:03:00]}  e5 {[%clk 0:02:58]} 2. Nf3 {[%clk 0:03:01]}  Nc6 {[%clk 0:02:59]} 3. Bb5 {[%clk 0:03:01]}  Nf6 {[%clk 0:02:59]} 4. d3 {[%clk 0:03:01]}  Bc5 {[%clk 0:02:59]} 5. Bxc6 {[%clk 0:02:55]}  dxc6 {[%clk 0:02:59]} 6. Be3 {[%clk 0:02:55]}  Bxe3 {[%clk 0:02:55]} 7. fxe3 {[%clk 0:02:56]}  Qe7 {[%clk 0:02:54]} 8. Nbd2 {[%clk 0:02:55]}  O-O {[%clk 0:02:52]} 9. O-O {[%clk 0:02:53]}  c5 {[%clk 0:02:43]} 10. Qe1 {[%clk 0:02:49]}  Nd7 {[%clk 0:02:31]} 11. Nh4 {[%clk 0:02:48]}  g6 {[%clk 0:02:30]} 12. Qg3 {[%clk 0:02:49]}  Kh8 {[%clk 0:02:27]} 13. Rf2 {[%clk 0:02:49]}  f6 {[%clk 0:02:08]} 14. Raf1 {[%clk 0:02:47]}  Rf7 {[%clk 0:02:08]} 15. Ndf3 {[%clk 0:02:45]}  Rg7 {[%clk 0:01:50]} 16. h3 {[%clk 0:02:42]}  b6 {[%clk 0:01:45]} 17. Nh2 {[%clk 0:02:41]}  Ba6 {[%clk 0:01:36]} 18. Ng4 {[%clk 0:02:40]}  Rf8 {[%clk 0:01:37]} 19. b3 {[%clk 0:02:30]}  Rff7 {[%clk 0:01:26]} 20. Nh6 {[%clk 0:02:14]}  Rf8 {[%clk 0:01:24]} 21. Rf3 {[%clk 0:02:12]}  Bc8 {[%clk 0:01:18]} 22. Qf2 {[%clk 0:02:10]}  Qe6 {[%clk 0:01:01]} 23. Ng4 {[%clk 0:02:08]}  Rgf7 {[%clk 0:00:58]} 24. a4 {[%clk 0:01:55]}  a5 {[%clk 0:00:57]} 25. Kh1 {[%clk 0:01:55]}  Qe7 {[%clk 0:00:55]} 26. Qg3 {[%clk 0:01:44]}  c4 {[%clk 0:00:47]} 27. bxc4 {[%clk 0:01:42]}  Nc5 {[%clk 0:00:48]} 28. Nh6 {[%clk 0:01:11]}  Rg7 {[%clk 0:00:48]} 29. Qf2 {[%clk 0:01:11]}  Nd7 {[%clk 0:00:32]} 30. Ng4 {[%clk 0:01:10]}  Rgf7 {[%clk 0:00:31]} 31. Kg1 {[%clk 0:01:05]}  Kg7 {[%clk 0:00:29]} 32. Rg3 {[%clk 0:01:04]}  Kh8 {[%clk 0:00:27]} 33. Nh6 {[%clk 0:01:02]}  Rg7 {[%clk 0:00:27]} 34. N4f5 {[%clk 0:01:01]}  gxf5 {[%clk 0:00:15]} 35. Nxf5 {[%clk 0:01:01]}  Rxg3 {[%clk 0:00:15]} 36. Nxe7 {[%clk 0:01:02]}  Rg7 {[%clk 0:00:15]} 37. Nf5 {[%clk 0:00:56]}  Rg5 {[%clk 0:00:15]} 38. Qh4 {[%clk 0:00:49]}  Nc5 {[%clk 0:00:14]} 39. Kh2 {[%clk 0:00:48]}  Bxf5 {[%clk 0:00:14]} 40. Rxf5 {[%clk 0:00:47]}  Rxf5 {[%clk 0:00:14]} 41. exf5 {[%clk 0:00:48]}  Nxa4 {[%clk 0:00:14]} 42. Qh6 {[%clk 0:00:48]}  Kg8 {[%clk 0:00:14]} 43. g4 {[%clk 0:00:48]}  Nc3 {[%clk 0:00:13]} 44. g5 {[%clk 0:00:48]}  fxg5 {[%clk 0:00:13]} 45. Qxg5+ {[%clk 0:00:49]}  Kh8 {[%clk 0:00:12]} 46. Qe7 {[%clk 0:00:49]}  Kg8 {[%clk 0:00:12]} 47. Qxe5 {[%clk 0:00:46]}  Nd1 {[%clk 0:00:10]} 48. f6 {[%clk 0:00:45]}  a4 {[%clk 0:00:08]} 49. Qg5+ {[%clk 0:00:43]}  Kf7 {[%clk 0:00:08]} 50. Qg7+ {[%clk 0:00:42]} 1-0


[Site "https://www.chess.com"]

[Event "Titled Tuesday Blitz June 21 Late 2022"]
[White "Barria Zuniga, Daniel"]
[Black "Barria Santos, Jose Guilherme"]
[WhiteFideId "3400816"]
[BlackFideId "1939300"]
[WhiteElo "2414"]
[BlackElo "2261"]
[Result "1/2-1/2"]
[Round "04"]
[TimeControl "180+1"]
[Date "2022.06.22"]
[WhiteClock "0:00:19"]
[BlackClock "0:00:15"]

1. d4 {[%clk 0:03:00]}  Nf6 {[%clk 0:02:40]} 2. c4 {[%clk 0:03:00]}  e6 {[%clk 0:02:39]} 3. Nf3 {[%clk 0:03:01]}  d5 {[%clk 0:02:39]} 4. Nc3 {[%clk 0:03:01]}  dxc4 {[%clk 0:02:39]} 5. e3 {[%clk 0:03:01]}  c5 {[%clk 0:02:34]} 6. Bxc4 {[%clk 0:03:00]}  Nc6 {[%clk 0:02:33]} 7. O-O {[%clk 0:02:59]}  cxd4 {[%clk 0:02:33]} 8. exd4 {[%clk 0:02:58]}  Be7 {[%clk 0:02:32]} 9. Bg5 {[%clk 0:02:57]}  O-O {[%clk 0:02:31]} 10. Re1 {[%clk 0:02:57]}  b6 {[%clk 0:02:30]} 11. a3 {[%clk 0:02:56]}  Bb7 {[%clk 0:02:30]} 12. Ba2 {[%clk 0:02:56]}  Rc8 {[%clk 0:02:30]} 13. Qd3 {[%clk 0:02:49]}  Nd5 {[%clk 0:02:20]} 14. Bxd5 {[%clk 0:02:48]}  Bxg5 {[%clk 0:02:20]} 15. Be4 {[%clk 0:02:45]}  g6 {[%clk 0:02:10]} 16. Rad1 {[%clk 0:02:39]}  Bf6 {[%clk 0:01:51]} 17. d5 {[%clk 0:02:36]}  exd5 {[%clk 0:01:49]} 18. Bxd5 {[%clk 0:02:33]}  Na5 {[%clk 0:01:32]} 19. Qe4 {[%clk 0:02:03]}  Qc7 {[%clk 0:01:18]} 20. Nb5 {[%clk 0:01:55]}  Bxd5 {[%clk 0:01:14]} 21. Qxd5 {[%clk 0:01:32]}  Qc5 {[%clk 0:01:11]} 22. b4 {[%clk 0:01:25]}  Qxd5 {[%clk 0:01:03]} 23. Rxd5 {[%clk 0:01:26]}  Nc4 {[%clk 0:00:57]} 24. Nxa7 {[%clk 0:01:18]}  Ra8 {[%clk 0:00:54]} 25. Nb5 {[%clk 0:01:17]}  Nxa3 {[%clk 0:00:52]} 26. Rd6 {[%clk 0:01:06]}  Nxb5 {[%clk 0:00:32]} 27. Rxf6 {[%clk 0:00:58]}  Ra4 {[%clk 0:00:28]} 28. Rxb6 {[%clk 0:00:56]}  Rxb4 {[%clk 0:00:28]} 29. h4 {[%clk 0:00:56]}  Rb3 {[%clk 0:00:22]} 30. h5 {[%clk 0:00:47]}  gxh5 {[%clk 0:00:18]} 31. Re5 {[%clk 0:00:44]}  Nd4 {[%clk 0:00:19]} 32. Rg5+ {[%clk 0:00:40]}  Kh8 {[%clk 0:00:19]} 33. Rxb3 {[%clk 0:00:40]}  Nxb3 {[%clk 0:00:20]} 34. Rxh5 {[%clk 0:00:41]}  Rb8 {[%clk 0:00:16]} 35. Ng5 {[%clk 0:00:39]}  Kg7 {[%clk 0:00:16]} 36. Rxh7+ {[%clk 0:00:39]}  Kg6 {[%clk 0:00:16]} 37. Rxf7 {[%clk 0:00:29]}  Kxg5 {[%clk 0:00:17]} 38. Rf3 {[%clk 0:00:29]}  Nd4 {[%clk 0:00:16]} 39. Rg3+ {[%clk 0:00:29]}  Kf4 {[%clk 0:00:16]} 40. Re3 {[%clk 0:00:28]}  Nf5 {[%clk 0:00:14]} 41. g3+ {[%clk 0:00:27]}  Kg4 {[%clk 0:00:14]} 42. Re4+ {[%clk 0:00:26]}  Kg5 {[%clk 0:00:14]} 43. Kg2 {[%clk 0:00:25]}  Rb3 {[%clk 0:00:14]} 44. Rf4 {[%clk 0:00:24]}  Rb2 {[%clk 0:00:14]} 45. Kg1 {[%clk 0:00:23]}  Rd2 {[%clk 0:00:13]} 46. Kg2 {[%clk 0:00:23]}  Ne3+ {[%clk 0:00:13]} 47. Kf3 {[%clk 0:00:19]}  Nd5 {[%clk 0:00:14]} 48. Re4 {[%clk 0:00:18]}  Rd3+ {[%clk 0:00:13]} 49. Ke2 {[%clk 0:00:16]}  Rd1 {[%clk 0:00:05]} 50. f4+ {[%clk 0:00:11]}  Kf6 {[%clk 0:00:04]} 51. Kxd1 {[%clk 0:00:10]}  Nc3+ {[%clk 0:00:04]} 52. Ke1 {[%clk 0:00:11]}  Nxe4 {[%clk 0:00:05]} 53. g4 {[%clk 0:00:11]}  Nd6 {[%clk 0:00:05]} 54. Ke2 {[%clk 0:00:11]}  Kg6 {[%clk 0:00:06]} 55. Kf3 {[%clk 0:00:11]}  Kf6 {[%clk 0:00:06]} 56. Kg3 {[%clk 0:00:11]}  Kg6 {[%clk 0:00:07]} 57. Kf3 {[%clk 0:00:12]}  Kf6 {[%clk 0:00:08]} 58. Ke3 {[%clk 0:00:12]}  Kg6 {[%clk 0:00:08]} 59. Kd4 {[%clk 0:00:13]}  Kf6 {[%clk 0:00:09]} 60. Kd3 {[%clk 0:00:13]}  Ke6 {[%clk 0:00:09]} 61. Kd4 {[%clk 0:00:13]}  Nf5+ {[%clk 0:00:08]} 62. Ke4 {[%clk 0:00:11]}  Nd6+ {[%clk 0:00:08]} 63. Kd4 {[%clk 0:00:11]}  Nf5+ {[%clk 0:00:09]} 64. gxf5+ {[%clk 0:00:11]}  Kxf5 {[%clk 0:00:10]} 65. Ke3 {[%clk 0:00:12]}  Kf6 {[%clk 0:00:10]} 66. Ke4 {[%clk 0:00:13]}  Ke6 {[%clk 0:00:11]} 67. Kf3 {[%clk 0:00:13]}  Kf5 {[%clk 0:00:11]} 68. Kg3 {[%clk 0:00:14]}  Kf6 {[%clk 0:00:12]} 69. Kg4 {[%clk 0:00:15]}  Kg6 {[%clk 0:00:12]} 70. f5+ {[%clk 0:00:15]}  Kf6 {[%clk 0:00:13]} 71. Kf4 {[%clk 0:00:16]}  Kf7 {[%clk 0:00:13]} 72. Ke5 {[%clk 0:00:17]}  Ke7 {[%clk 0:00:14]} 73. Ke4 {[%clk 0:00:17]}  Kf6 {[%clk 0:00:14]} 74. Kf4 {[%clk 0:00:18]}  Kf7 {[%clk 0:00:15]} 75. Kg4 {[%clk 0:00:19]}  Kf6 {[%clk 0:00:15]} 76. Kf4 {[%clk 0:00:19]} 1/2-1/2


[Site "https://www.chess.com"]

[Event "Titled Tuesday Blitz June 21 Late 2022"]
[White "Bortnyk, Mykola"]
[Black "Xiong, Jeffery"]
[WhiteFideId "14120836"]
[BlackFideId "2047640"]
[WhiteElo "2582"]
[BlackElo "2714"]
[Result "1-0"]
[Round "04"]
[TimeControl "180+1"]
[Date "2022.06.21"]
[WhiteClock "0:00:56"]
[BlackClock "0:01:08"]

1. e4 {[%clk 0:03:00]}  e5 {[%clk 0:03:00]} 2. Nf3 {[%clk 0:03:01]}  Nf6 {[%clk 0:03:00]} 3. Nxe5 {[%clk 0:03:01]}  d6 {[%clk 0:03:00]} 4. Nf3 {[%clk 0:03:01]}  Nxe4 {[%clk 0:03:00]} 5. Bd3 {[%clk 0:03:01]}  Nf6 {[%clk 0:02:59]} 6. O-O {[%clk 0:03:01]}  Be7 {[%clk 0:03:00]} 7. c3 {[%clk 0:03:02]}  O-O {[%clk 0:03:00]} 8. h3 {[%clk 0:03:03]}  d5 {[%clk 0:03:00]} 9. Bc2 {[%clk 0:03:03]}  Bd6 {[%clk 0:02:49]} 10. d4 {[%clk 0:03:02]}  h6 {[%clk 0:02:50]} 11. Re1 {[%clk 0:03:00]}  Nc6 {[%clk 0:02:50]} 12. Nbd2 {[%clk 0:02:59]}  Ne7 {[%clk 0:02:50]} 13. Nf1 {[%clk 0:02:57]}  Bf5 {[%clk 0:02:50]} 14. Ne3 {[%clk 0:02:48]}  Bxc2 {[%clk 0:02:49]} 15. Qxc2 {[%clk 0:02:49]}  Re8 {[%clk 0:02:47]} 16. Bd2 {[%clk 0:02:45]}  Ng6 {[%clk 0:02:36]} 17. Nf5 {[%clk 0:02:43]}  Ne4 {[%clk 0:02:35]} 18. c4 {[%clk 0:02:29]}  c6 {[%clk 0:02:29]} 19. cxd5 {[%clk 0:02:27]}  cxd5 {[%clk 0:02:30]} 20. Qb3 {[%clk 0:02:19]}  Qd7 {[%clk 0:02:27]} 21. Nxd6 {[%clk 0:02:18]}  Qxd6 {[%clk 0:02:28]} 22. Be3 {[%clk 0:02:08]}  Qd7 {[%clk 0:02:20]} 23. Rac1 {[%clk 0:02:05]}  Rac8 {[%clk 0:02:21]} 24. Rxc8 {[%clk 0:01:57]}  Rxc8 {[%clk 0:02:22]} 25. Ne5 {[%clk 0:01:54]}  Nxe5 {[%clk 0:01:42]} 26. dxe5 {[%clk 0:01:55]}  Rc4 {[%clk 0:01:42]} 27. Rd1 {[%clk 0:01:51]}  Qc6 {[%clk 0:01:42]} 28. Bxa7 {[%clk 0:01:47]}  Rc2 {[%clk 0:01:32]} 29. Be3 {[%clk 0:01:35]}  Rc4 {[%clk 0:01:20]} 30. Qd3 {[%clk 0:01:34]}  Rc2 {[%clk 0:01:21]} 31. Qxd5 {[%clk 0:01:17]}  Qxd5 {[%clk 0:01:21]} 32. Rxd5 {[%clk 0:01:17]}  Rxb2 {[%clk 0:01:22]} 33. a4 {[%clk 0:01:15]}  Nc3 {[%clk 0:01:20]} 34. Rd8+ {[%clk 0:01:12]}  Kh7 {[%clk 0:01:20]} 35. a5 {[%clk 0:01:08]}  Rb5 {[%clk 0:01:21]} 36. Bb6 {[%clk 0:01:07]}  Nd5 {[%clk 0:01:16]} 37. Rd7 {[%clk 0:00:56]}  Nxb6 {[%clk 0:01:07]} 38. axb6 {[%clk 0:00:57]}  Rxe5 {[%clk 0:01:07]} 39. Rxf7 {[%clk 0:00:56]}  Rb5 {[%clk 0:01:08]} 40. Rxb7 {[%clk 0:00:56]} 1-0


[Site "https://www.chess.com"]

[Event "Titled Tuesday Blitz June 21 Late 2022"]
[White "Boyer, Mahel"]
[Black "Martin Carmona, Gaston Manuel"]
[WhiteFideId "45102422"]
[BlackFideId "22284567"]
[WhiteElo "2400"]
[BlackElo "2162"]
[Result "1-0"]
[Round "04"]
[TimeControl "180+1"]
[Date "2022.06.21"]
[WhiteClock "0:00:05"]
[BlackClock "0:00:29"]

1. e4 {[%clk 0:02:47]}  c5 {[%clk 0:02:58]} 2. Nf3 {[%clk 0:02:46]}  d6 {[%clk 0:02:59]} 3. c3 {[%clk 0:02:41]}  Nf6 {[%clk 0:02:59]} 4. Bd3 {[%clk 0:02:36]}  Nc6 {[%clk 0:02:49]} 5. O-O {[%clk 0:02:36]}  g6 {[%clk 0:02:41]} 6. Bc2 {[%clk 0:02:34]}  Bg7 {[%clk 0:02:41]} 7. d4 {[%clk 0:02:33]}  cxd4 {[%clk 0:02:42]} 8. cxd4 {[%clk 0:02:33]}  Bg4 {[%clk 0:02:43]} 9. Be3 {[%clk 0:02:22]}  O-O {[%clk 0:02:40]} 10. Nbd2 {[%clk 0:02:23]}  Nd7 {[%clk 0:02:38]} 11. h3 {[%clk 0:02:22]}  Bxf3 {[%clk 0:02:38]} 12. Nxf3 {[%clk 0:02:23]}  Rc8 {[%clk 0:02:32]} 13. Rc1 {[%clk 0:02:14]}  Qa5 {[%clk 0:02:30]} 14. a3 {[%clk 0:02:13]}  Nb6 {[%clk 0:02:26]} 15. Bb3 {[%clk 0:02:12]}  Qh5 {[%clk 0:02:20]} 16. Qd3 {[%clk 0:01:52]}  Na5 {[%clk 0:02:19]} 17. Ba2 {[%clk 0:01:29]}  Na4 {[%clk 0:02:04]} 18. b4 {[%clk 0:01:18]}  Nc6 {[%clk 0:02:01]} 19. Kh2 {[%clk 0:01:02]}  g5 {[%clk 0:01:13]} 20. Nxg5 {[%clk 0:00:45]}  Qg6 {[%clk 0:01:05]} 21. f4 {[%clk 0:00:38]}  h6 {[%clk 0:01:00]} 22. Nf3 {[%clk 0:00:30]}  Nb6 {[%clk 0:00:52]} 23. Nh4 {[%clk 0:00:19]}  Qf6 {[%clk 0:00:51]} 24. Nf5 {[%clk 0:00:17]}  Bh8 {[%clk 0:00:49]} 25. e5 {[%clk 0:00:16]}  dxe5 {[%clk 0:00:43]} 26. fxe5 {[%clk 0:00:16]}  Qg6 {[%clk 0:00:41]} 27. Bxh6 {[%clk 0:00:13]}  Kh7 {[%clk 0:00:38]} 28. Bxf8 {[%clk 0:00:12]}  Rxf8 {[%clk 0:00:39]} 29. Rf4 {[%clk 0:00:12]}  Nxe5 {[%clk 0:00:30]} 30. Rh4+ {[%clk 0:00:11]}  Kg8 {[%clk 0:00:30]} 31. dxe5 {[%clk 0:00:06]}  Bxe5+ {[%clk 0:00:31]} 32. Kh1 {[%clk 0:00:06]}  Qf6 {[%clk 0:00:29]} 33. Nxe7+ {[%clk 0:00:05]} 1-0


[Site "https://www.chess.com"]

[Event "Titled Tuesday Blitz June 21 Late 2022"]
[White "Carbone, Diego"]
[Black "Lopez Perdomo, Juan David"]
[WhiteFideId "3002179"]
[BlackFideId "4405137"]
[WhiteElo "2199"]
[BlackElo "1997"]
[Result "1-0"]
[Round "04"]
[TimeControl "180+1"]
[Date "2022.06.22"]
[WhiteClock "0:00:10"]
[BlackClock "0:00:01"]

1. d4 {[%clk 0:03:00]}  c5 {[%clk 0:02:44]} 2. d5 {[%clk 0:02:59]}  e6 {[%clk 0:02:45]} 3. c4 {[%clk 0:02:57]}  exd5 {[%clk 0:02:45]} 4. cxd5 {[%clk 0:02:58]}  d6 {[%clk 0:02:46]} 5. Nc3 {[%clk 0:02:58]}  Nf6 {[%clk 0:02:47]} 6. e4 {[%clk 0:02:58]}  g6 {[%clk 0:02:48]} 7. Nge2 {[%clk 0:02:58]}  Bg7 {[%clk 0:02:49]} 8. Ng3 {[%clk 0:02:59]}  O-O {[%clk 0:02:50]} 9. Be2 {[%clk 0:02:59]}  Na6 {[%clk 0:02:47]} 10. O-O {[%clk 0:02:58]}  Nc7 {[%clk 0:02:48]} 11. a4 {[%clk 0:02:58]}  b6 {[%clk 0:02:47]} 12. Bg5 {[%clk 0:02:40]}  Re8 {[%clk 0:02:44]} 13. Qd2 {[%clk 0:02:37]}  Bd7 {[%clk 0:02:45]} 14. h3 {[%clk 0:02:32]}  a6 {[%clk 0:02:45]} 15. f4 {[%clk 0:02:21]}  b5 {[%clk 0:02:44]} 16. e5 {[%clk 0:02:10]}  dxe5 {[%clk 0:02:44]} 17. d6 {[%clk 0:02:11]}  Ne6 {[%clk 0:02:43]} 18. fxe5 {[%clk 0:02:05]}  Nxg5 {[%clk 0:02:43]} 19. exf6 {[%clk 0:01:46]}  Bxf6 {[%clk 0:02:43]} 20. axb5 {[%clk 0:01:42]}  Bd4+ {[%clk 0:02:33]} 21. Kh1 {[%clk 0:01:39]}  Nxh3 {[%clk 0:02:13]} 22. gxh3 {[%clk 0:00:28]}  Qh4 {[%clk 0:02:13]} 23. Bf3 {[%clk 0:00:21]}  Bxh3 {[%clk 0:01:08]} 24. Qh2 {[%clk 0:00:17]}  Be5 {[%clk 0:01:09]} 25. Rg1 {[%clk 0:00:15]}  Rad8 {[%clk 0:01:02]} 26. bxa6 {[%clk 0:00:13]}  g5 {[%clk 0:00:35]} 27. Bd5 {[%clk 0:00:10]}  g4 {[%clk 0:00:32]} 28. Ra4 {[%clk 0:00:11]}  Rxd6 {[%clk 0:00:26]} 29. a7 {[%clk 0:00:09]}  Rxd5 {[%clk 0:00:15]} 30. Nxd5 {[%clk 0:00:10]}  Bxg3 {[%clk 0:00:09]} 31. a8=Q {[%clk 0:00:11]}  Rxa8 {[%clk 0:00:02]} 32. Rxa8+ {[%clk 0:00:11]}  Kg7 {[%clk 0:00:03]} 33. Rxg3 {[%clk 0:00:10]}  f5 {[%clk 0:00:02]} 34. Nf4 {[%clk 0:00:10]}  Qg5 {[%clk 0:00:02]} 35. Nxh3 {[%clk 0:00:10]}  Qc1+ {[%clk 0:00:01]} 36. Rg1 {[%clk 0:00:10]} 1-0


[Site "https://www.chess.com"]

[Event "Titled Tuesday Blitz June 21 Late 2022"]
[White "Daggupati, Balaji"]
[Black "Senthilkumar, Pranav"]
[WhiteFideId "2090759"]
[BlackFideId "2083477"]
[WhiteElo "2672"]
[BlackElo "2439"]
[Result "1-0"]
[Round "04"]
[TimeControl "180+1"]
[Date "2022.06.22"]
[WhiteClock "0:02:42"]
[BlackClock "0:01:50"]

1. e4 {[%clk 0:03:00]}  c5 {[%clk 0:02:59]} 2. Nf3 {[%clk 0:03:00]}  e6 {[%clk 0:02:59]} 3. d4 {[%clk 0:03:00]}  cxd4 {[%clk 0:03:00]} 4. Nxd4 {[%clk 0:03:01]}  Nc6 {[%clk 0:03:01]} 5. Nc3 {[%clk 0:03:02]}  Qc7 {[%clk 0:03:01]} 6. Be2 {[%clk 0:03:01]}  a6 {[%clk 0:03:01]} 7. O-O {[%clk 0:03:01]}  Nf6 {[%clk 0:03:01]} 8. Kh1 {[%clk 0:03:02]}  Bb4 {[%clk 0:02:59]} 9. Bg5 {[%clk 0:02:57]}  Bxc3 {[%clk 0:02:58]} 10. Bxf6 {[%clk 0:02:57]}  Bxb2 {[%clk 0:02:58]} 11. Bxg7 {[%clk 0:02:56]}  Rg8 {[%clk 0:02:57]} 12. Rb1 {[%clk 0:02:56]}  Rxg7 {[%clk 0:02:41]} 13. Rxb2 {[%clk 0:02:56]}  Qe5 {[%clk 0:02:39]} 14. Nxc6 {[%clk 0:02:55]}  Qxb2 {[%clk 0:02:35]} 15. Nd4 {[%clk 0:02:52]}  b5 {[%clk 0:02:33]} 16. e5 {[%clk 0:02:45]}  Bb7 {[%clk 0:02:32]} 17. Bf3 {[%clk 0:02:45]}  Bxf3 {[%clk 0:02:30]} 18. Qxf3 {[%clk 0:02:46]}  Rd8 {[%clk 0:02:15]} 19. Rd1 {[%clk 0:02:46]}  Kf8 {[%clk 0:02:07]} 20. Nxe6+ {[%clk 0:02:42]}  Kg8 {[%clk 0:01:50]} 21. Nxg7 {[%clk 0:02:42]}  Kxg7 {[%clk 0:01:49]} 22. Qf6+ {[%clk 0:02:41]}  Kg8 {[%clk 0:01:49]} 23. Qxd8+ {[%clk 0:02:42]}  Kg7 {[%clk 0:01:50]} 24. Qg5+ {[%clk 0:02:42]} 1-0


[Site "https://www.chess.com"]